fUST/lending_fUST_20250817
["ID","MTS","AMOUNT","RATE_DAILY","PERIOD"]
[379888480,1755432652963,-480.0,0.00019957,2]
[379888482,1755432652972,-239.49471373,0.00019957,2]
[379888484,1755432652982,-1299.43,0.00019957,2]
[379888486,1755432652992,-1819.43,0.00019957,2]
[379888488,1755432653002,-820.66,0.00019957,2]
[379888490,1755432653011,-160.0,0.00019957,3]
[379888492,1755432653021,-812.51,0.00019958,2]
[379888494,1755432653030,-480.0,0.00019958,2]
[379888496,1755432653040,-480.0,0.00019958,2]
[379888498,1755432653050,-480.0,0.00019958,2]
[379888500,1755432653059,-480.0,0.00019958,2]
[379888502,1755432653068,-480.0,0.00019958,2]
[379888504,1755432653078,-480.0,0.00019958,2]
[379888506,1755432653087,-480.0,0.00019958,2]
[379888508,1755432653097,-480.0,0.00019958,2]
[379888510,1755432653107,-480.0,0.00019958,2]
[379888512,1755432653117,-916.36,0.00019958,2]
[379888514,1755432653126,-480.0,0.00019958,2]
[379888516,1755432653135,-480.0,0.00019958,2]
[379888518,1755432653145,-460.0,0.00019958,2]
[379888520,1755432653155,-480.0,0.00019958,2]
[379888522,1755432653165,-480.0,0.00019958,2]
[379888524,1755432653175,-480.0,0.00019958,2]
[379888526,1755432653185,-480.0,0.00019958,2]
[379888528,1755432653194,-480.0,0.00019958,2]
[379888529,1755432653203,-480.0,0.00019958,2]
[379888531,1755432653213,-480.0,0.00019958,2]
[379888533,1755432653223,-480.0,0.00019958,2]
[379888535,1755432653232,-480.0,0.00019958,2]
[379888538,1755432653243,-480.0,0.00019958,2]
[379888539,1755432653252,-480.0,0.00019958,2]
[379888541,1755432653264,-653.69,0.00019958,2]
[379888544,1755432653274,-480.0,0.00019958,2]
[379888546,1755432653284,-480.0,0.00019958,2]
[379888547,1755432653294,-480.0,0.00019958,2]
[379888549,1755432653303,-480.0,0.00019958,2]
[379888562,1755432653419,-480.0,0.00019958,2]
[379888564,1755432653431,-1139.81,0.00019958,2]
[379888566,1755432653441,-480.0,0.00019958,2]
[379888568,1755432653450,-660.47,0.00019958,2]
[379888570,1755432653460,-480.0,0.00019958,2]
[379888572,1755432653469,-849.75,0.00019958,2]
[379888574,1755432653479,-480.0,0.00019958,2]
[379888576,1755432653488,-480.0,0.00019958,2]
[379888578,1755432653500,-480.0,0.00019958,2]
[379888580,1755432653511,-480.0,0.00019958,2]
[379888582,1755432653520,-652.28,0.00019958,2]
[379888584,1755432653530,-480.0,0.00019958,2]
[379888586,1755432653539,-480.0,0.00019958,2]
[379888588,1755432653549,-500.0,0.00019993,2]
[379888590,1755432653558,-394.78644593,0.00019993,2]
[379888592,1755432653568,-263.34307843,0.00019993,2]
[379888594,1755432653578,-160.0,0.0002,3]
[379888596,1755432653589,-500.0,0.0002,2]
[379888598,1755432653598,-174.225435,0.00020058,2]
[379888600,1755432653608,-174.225435,0.00020058,2]
[379888602,1755432653618,-276.021004,0.00020058,2]
[379888604,1755432653627,-276.021004,0.00020058,2]
[379888606,1755432653637,-480.0,0.00020058,2]
[379888607,1755432653648,-480.0,0.00020058,2]
[379888609,1755432653658,-480.0,0.00020058,2]
[379888611,1755432653668,-480.0,0.00020058,2]
[379888613,1755432653680,-480.0,0.00020058,2]
[379888615,1755432653689,-480.0,0.00020058,2]
[379888617,1755432653699,-480.0,0.00020058,2]
[379888619,1755432653708,-480.0,0.00020058,2]
[379888621,1755432653718,-480.0,0.00020058,2]
[379888623,1755432653727,-253.751764,0.00020058,2]
[379888625,1755432653737,-253.751764,0.00020058,2]
[379888627,1755432653747,-480.0,0.00020058,2]
[379888629,1755432653756,-480.0,0.00020058,2]
[379888631,1755432653766,-440.0,0.00020058,2]
[379888633,1755432653775,-480.0,0.00020058,2]
[379888635,1755432653785,-480.0,0.00020058,2]
[379888637,1755432653795,-400.0,0.00020058,2]
[379888639,1755432653804,-480.0,0.00020058,2]
[379888641,1755432653813,-480.0,0.00020058,2]
[379888643,1755432653823,-480.0,0.00020058,2]
[379888645,1755432653833,-460.0,0.00020058,2]
[379888647,1755432653843,-480.0,0.00020058,2]
[379888649,1755432653853,-480.0,0.00020058,2]
[379888651,1755432653863,-480.0,0.00020058,2]
[379888653,1755432653872,-499.92159568,0.00020058,2]
[379888655,1755432653883,-480.0,0.00020058,2]
[379888657,1755432653892,-480.0,0.00020058,2]
[379888659,1755432653902,-480.0,0.00020058,2]
[379888661,1755432653912,-480.0,0.00020058,2]
[379888663,1755432653922,-480.0,0.00020058,2]
[379888665,1755432653931,-480.0,0.00020058,2]
[379888667,1755432653941,-460.0,0.00020058,2]
[379888669,1755432653950,-562.47998208,0.00020058,2]
[379888671,1755432653959,-480.0,0.00020058,2]
[379888673,1755432653969,-480.0,0.00020058,2]
[379888675,1755432653979,-462.89410151,0.00020058,2]
[379888677,1755432653989,-463.69089332,0.00020058,2]
[379888679,1755432653998,-480.0,0.00020058,2]
[379888681,1755432654008,-342.91329562,0.00020058,2]
[379888683,1755432654017,-537.31522005,0.00020058,2]
[379888685,1755432654026,-480.0,0.00020058,2]
[379888687,1755432654036,-462.47836236,0.00020058,2]
[379888689,1755432654045,-480.0,0.00020058,2]
[379888691,1755432654054,-462.90263136,0.00020058,2]
[379888693,1755432654064,-463.88119613,0.00020058,2]
[379888695,1755432654073,-423.50995364,0.00020058,2]
[379888697,1755432654083,-460.0,0.00020058,2]
[379888699,1755432654092,-480.0,0.00020058,2]
[379888700,1755432654101,-480.0,0.00020058,2]
[379888701,1755432654111,-480.0,0.00020058,2]
[379888702,1755432654120,-480.0,0.00020058,2]
[379888703,1755432654129,-480.0,0.00020058,2]
[379888704,1755432654138,-480.0,0.00020058,2]
[379888705,1755432654148,-361.98722825,0.00020058,2]
[379888706,1755432654157,-480.0,0.00020058,2]
[379888707,1755432654167,-480.0,0.00020058,2]
[379888708,1755432654178,-480.0,0.00020058,2]
[379888709,1755432654188,-480.0,0.00020058,2]
[379888710,1755432654198,-480.0,0.00020058,2]
[379888711,1755432654207,-480.0,0.00020058,2]
[379888712,1755432654216,-480.0,0.00020058,2]
[379888713,1755432654226,-480.0,0.00020058,2]
[379888714,1755432654236,-480.0,0.00020058,2]
[379888715,1755432654245,-480.0,0.00020058,2]
[379888716,1755432654255,-480.0,0.00020058,2]
[379888717,1755432654265,-480.0,0.00020058,2]
[379888718,1755432654274,-480.0,0.00020058,2]
[379888719,1755432654284,-480.0,0.00020058,2]
[379888720,1755432654296,-480.0,0.00020058,2]
[379888721,1755432654319,-480.0,0.00020058,2]
[379888722,1755432654335,-480.0,0.00020058,2]
[379888723,1755432654358,-500.0,0.00020058,2]
[379888724,1755432654370,-480.0,0.00020058,2]
[379888725,1755432654381,-480.0,0.00020058,2]
[379888726,1755432654390,-480.0,0.00020058,2]
[379888727,1755432654400,-462.01136745,0.00020058,2]
[379888728,1755432654410,-480.0,0.00020058,2]
[379888729,1755432654419,-480.0,0.00020059,2]
[379888730,1755432654429,-480.0,0.00020059,2]
[379888731,1755432654441,-480.0,0.00020059,2]
[379888732,1755432654450,-480.0,0.00020059,2]
[379888734,1755432654460,-463.20817639,0.00020059,2]
[379888736,1755432654469,-480.0,0.00020059,2]
[379888738,1755432654477,-480.0,0.00020059,2]
[379888740,1755432654486,-480.0,0.00020059,2]
[379888742,1755432654494,-480.0,0.00020059,2]
[379888744,1755432654505,-480.0,0.00020059,2]
[379888746,1755432654513,-480.0,0.00020059,2]
[379888748,1755432654520,-480.0,0.00020059,2]
[379888750,1755432654529,-480.0,0.00020059,2]
[379888752,1755432654539,-1090.54,0.00020059,2]
[379888754,1755432654548,-480.0,0.00020059,2]
[379888756,1755432654557,-480.0,0.00020059,2]
[379888758,1755432654567,-480.0,0.00020059,2]
[379888760,1755432654577,-4841.57,0.00020059,2]
[379888762,1755432654586,-7041.82,0.00020059,2]
[379888764,1755432654595,-1016.3,0.00020059,2]
[379888766,1755432654604,-480.0,0.00020059,2]
[379888768,1755432654614,-2313.08,0.0002006,2]
[379888770,1755432654623,-491.93,0.0002006,2]
[379888772,1755432654633,-224.126508,0.00020073,2]
[379888774,1755432654642,-224.126508,0.00020073,2]
[379888776,1755432654651,-500.0,0.00020082,2]
[379888778,1755432654660,-4000.0,0.00020084,4]
[379888780,1755432654669,-2731.0,0.000201,7]
[379888782,1755432654678,-1000.0,0.00020121,2]
[379888783,1755432654688,-509.2420939,0.00020121,2]
[379888785,1755432654697,-500.0,0.00020121,2]
[379888787,1755432654707,-1000.0,0.00020121,2]
[379888789,1755432654716,-500.98423419,0.00020121,2]
[379888791,1755432654724,-1000.0,0.00020121,2]
[379888793,1755432654734,-325.94993229,0.00020121,2]
[379888795,1755432654742,-1000.0,0.00020121,2]
[379888797,1755432654751,-242.97626793,0.00020121,2]
[379888799,1755432654760,-1000.0,0.00020121,2]
[379888801,1755432654770,-1000.0,0.00020121,2]
[379888803,1755432654779,-1000.0,0.00020121,2]
[379888805,1755432654789,-1000.0,0.00020121,2]
[379888807,1755432654798,-1000.0,0.00020121,2]
[379888809,1755432654806,-1000.0,0.00020121,2]
[379888811,1755432654815,-1000.0,0.00020121,2]
[379888813,1755432654825,-1000.0,0.00020121,2]
[379888815,1755432654834,-671.96,0.00020147,2]
[379888817,1755432654844,-652.29,0.00020147,2]
[379888819,1755432654852,-579.9,0.00020147,2]
[379888821,1755432654861,-480.0,0.00020147,2]
[379888823,1755432654870,-1696.46,0.00020147,2]
[379888825,1755432654880,-480.0,0.00020147,2]
[379888827,1755432654889,-480.0,0.00020148,2]
[379888829,1755432654899,-480.0,0.00020148,2]
[379888831,1755432654908,-480.0,0.00020148,2]
[379888833,1755432654917,-480.0,0.00020148,2]
[379888835,1755432654926,-480.0,0.00020148,2]
[379888837,1755432654935,-480.0,0.00020148,2]
[379888839,1755432654943,-480.0,0.00020148,2]
[379888841,1755432654952,-480.0,0.00020148,2]
[379888843,1755432654960,-427.46366629,0.00020148,2]
[379888845,1755432654969,-480.0,0.00020148,2]
[379888846,1755432654978,-480.0,0.00020148,2]
[379888849,1755432654988,-480.0,0.00020148,2]
[379888850,1755432654997,-480.0,0.00020148,2]
[379888852,1755432655006,-480.0,0.00020148,2]
[379888855,1755432655016,-480.0,0.00020148,2]
[379888856,1755432655025,-480.0,0.00020148,2]
[379888858,1755432655034,-151.0,0.00020169,2]
[379888860,1755432655043,-151.741426,0.00020169,2]
[379888862,1755432655052,-151.0,0.00020169,2]
[379888864,1755432655061,-151.0,0.00020175,2]
[379888866,1755432655070,-714.900024,0.00020187,2]
[379888868,1755432655079,-160.0,0.00020198,2]
[379888870,1755432655088,-160.0,0.00020198,2]
[379888872,1755432655097,-843.71309931,0.00020198,2]
[379888874,1755432655106,-215.71995163,0.00020198,2]
[379888876,1755432655115,-528.48506731,0.00020198,2]
[379888878,1755432655125,-160.0,0.00020198,2]
[379888880,1755432655134,-12682.46447135,0.00020198,2]
[379888882,1755432655143,-375.77065697,0.00020198,2]
[379888884,1755432655152,-160.0,0.00020198,2]
[379888886,1755432655161,-417.15472785,0.00020198,2]
[379888888,1755432655170,-232.1512529,0.00020198,2]
[379888890,1755432655180,-374.48,0.0002021,2]
[379888892,1755432655189,-480.0,0.00020224,2]
[379888894,1755432655199,-480.0,0.00020225,2]
[379888896,1755432655208,-480.0,0.00020225,2]
[379888898,1755432655217,-1499.65,0.00020225,2]
[379888900,1755432655226,-1053.83,0.00020227,2]
[379888902,1755432655235,-480.0,0.00020227,2]
[379888904,1755432655244,-510.83,0.00020227,2]
[379888906,1755432655255,-1350.16,0.00020227,2]
[379888908,1755432655264,-1942.59,0.00020227,2]
[379888910,1755432655273,-480.0,0.00020227,2]
[379888912,1755432655282,-1202.01,0.00020227,2]
[379888914,1755432655292,-480.0,0.00020227,2]
[379888916,1755432655301,-480.0,0.00020227,2]
[379888918,1755432655310,-600.24,0.00020227,2]
[379888919,1755432655319,-841.63,0.00020227,2]
[379888930,1755432655329,-480.0,0.00020227,2]
[379888932,1755432655430,-480.0,0.00020228,2]
[379888934,1755432655439,-3081.23,0.00020228,2]
[379888936,1755432655449,-480.0,0.00020229,2]
[379888938,1755432655459,-480.0,0.00020229,2]
[379888940,1755432655468,-440.0,0.00020229,2]
[379888943,1755432655479,-480.0,0.00020229,2]
[379888945,1755432655488,-480.0,0.00020229,2]
[379888947,1755432655498,-480.0,0.00020229,2]
[379888949,1755432655507,-480.0,0.00020229,2]
[379888951,1755432655516,-1066.29,0.00020229,2]
[379888952,1755432655525,-494.92,0.00020229,2]
[379888955,1755432655534,-307.73635601,0.00020229,2]
[379888956,1755432655544,-480.0,0.00020229,2]
[379888958,1755432655553,-480.0,0.00020229,2]
[379888960,1755432655563,-464.61589579,0.00020229,2]
[379888962,1755432655572,-480.0,0.00020229,2]
[379888964,1755432655581,-480.0,0.00020229,2]
[379888966,1755432655591,-480.0,0.00020229,2]
[379888969,1755432655600,-784.47,0.00020229,2]
[379888971,1755432655610,-480.0,0.00020229,2]
[379888972,1755432655619,-2330.91,0.00020229,2]
[379888974,1755432655628,-480.0,0.00020229,2]
[379888976,1755432655637,-547.81,0.00020229,2]
[379888978,1755432655647,-480.0,0.00020229,2]
[379888980,1755432655656,-480.0,0.00020229,2]
[379888982,1755432655665,-480.0,0.00020229,2]
[379888984,1755432655674,-480.0,0.00020229,2]
[379888986,1755432655684,-480.0,0.00020229,2]
[379888988,1755432655693,-480.0,0.00020229,2]
[379888990,1755432655703,-480.0,0.00020229,2]
[379888992,1755432655712,-622.5,0.00020229,2]
[379888994,1755432655722,-480.0,0.00020229,2]
[379888996,1755432655732,-552.58,0.00020229,2]
[379888998,1755432655743,-480.0,0.00020229,2]
[379889000,1755432655755,-480.0,0.00020229,2]
[379889002,1755432655764,-962.79,0.00020229,2]
[379889004,1755432655775,-480.0,0.00020229,2]
[379889006,1755432655784,-494.21,0.00020231,2]
[379889008,1755432655794,-480.0,0.00020231,2]
[379889010,1755432655804,-773.7,0.00020231,2]
[379889012,1755432655814,-480.0,0.00020231,2]
[379889014,1755432655823,-6390.71,0.00020231,2]
[379889016,1755432655832,-840.69,0.00020231,2]
[379889018,1755432655841,-480.0,0.00020231,2]
[379889020,1755432655850,-1299.43,0.00020231,2]
[379889022,1755432655859,-1819.43,0.00020231,2]
[379889024,1755432655868,-820.66,0.00020231,2]
[379889025,1755432655878,-812.51,0.00020232,2]
[379889027,1755432655887,-480.0,0.00020232,2]
[379889029,1755432655897,-480.0,0.00020232,2]
[379889031,1755432655906,-480.0,0.00020232,2]
[379889033,1755432655915,-480.0,0.00020232,2]
[379889035,1755432655924,-480.0,0.00020232,2]
[379889037,1755432655933,-480.0,0.00020232,2]
[379889039,1755432655942,-480.0,0.00020232,2]
[379889041,1755432655951,-916.36,0.00020232,2]
[379889043,1755432655961,-480.0,0.00020232,2]
[379889045,1755432655970,-480.0,0.00020232,2]
[379889047,1755432655979,-480.0,0.00020232,2]
[379889049,1755432655988,-480.0,0.00020232,2]
[379889051,1755432655998,-480.0,0.00020232,2]
[379889053,1755432656007,-414.99170846,0.00020232,2]
[379889055,1755432656016,-480.0,0.00020232,2]
[379889057,1755432656026,-480.0,0.00020232,2]
[379889059,1755432656035,-480.0,0.00020232,2]
[379889061,1755432656045,-480.0,0.00020232,2]
[379889063,1755432656056,-653.69,0.00020232,2]
[379889065,1755432656066,-480.0,0.00020232,2]
[379889067,1755432656076,-480.0,0.00020232,2]
[379889069,1755432656085,-480.0,0.00020232,2]
[379889071,1755432656094,-1139.81,0.00020232,2]
[379889073,1755432656104,-480.0,0.00020232,2]
[379889075,1755432656114,-660.47,0.00020232,2]
[379889077,1755432656123,-420.0,0.00020232,2]
[379889079,1755432656133,-849.75,0.00020232,2]
[379889081,1755432656143,-368.61924045,0.00020232,2]
[379889083,1755432656153,-480.0,0.00020232,2]
[379889085,1755432656162,-480.0,0.00020232,2]
[379889087,1755432656171,-480.0,0.00020232,2]
[379889089,1755432656181,-652.28,0.00020232,2]
[379889091,1755432656190,-499.74,0.00020232,2]
[379889093,1755432656199,-160.0,0.00020257,2]
[379889095,1755432656208,-168.0,0.00020268,2]
[379889096,1755432656218,-151.0,0.000203,3]
[379889098,1755432656227,-168.0,0.00020313,2]
[379889100,1755432656236,-480.0,0.00020332,2]
[379889102,1755432656245,-480.0,0.00020332,2]
[379889104,1755432656254,-480.0,0.00020332,2]
[379889106,1755432656263,-480.0,0.00020332,2]
[379889108,1755432656273,-480.0,0.00020332,2]
[379889110,1755432656282,-480.0,0.00020332,2]
[379889111,1755432656291,-480.0,0.00020332,2]
[379889114,1755432656305,-480.0,0.00020332,2]
[379889116,1755432656314,-480.0,0.00020332,2]
[379889118,1755432656325,-480.0,0.00020332,2]
[379889120,1755432656335,-480.0,0.00020332,2]
[379889122,1755432656351,-480.0,0.00020332,2]
[379889124,1755432656360,-347.72777697,0.00020332,2]
[379889126,1755432656374,-480.0,0.00020332,2]
[379889128,1755432656383,-480.0,0.00020332,2]
[379889130,1755432656392,-480.0,0.00020332,2]
[379889132,1755432656402,-480.0,0.00020332,2]
[379889134,1755432656411,-426.91366919,0.00020332,2]
[379889136,1755432656420,-480.0,0.00020332,2]
[379889138,1755432656430,-480.0,0.00020332,2]
[379889140,1755432656440,-480.0,0.00020332,2]
[379889141,1755432656449,-480.0,0.00020332,2]
[379889143,1755432656461,-460.0,0.00020332,2]
[379889145,1755432656471,-480.0,0.00020332,2]
[379889147,1755432656481,-480.0,0.00020332,2]
[379889149,1755432656490,-480.0,0.00020332,2]
[379889151,1755432656499,-480.0,0.00020332,2]
[379889153,1755432656509,-480.0,0.00020332,2]
[379889155,1755432656518,-480.0,0.00020332,2]
[379889157,1755432656527,-480.0,0.00020332,2]
[379889159,1755432656536,-480.0,0.00020332,2]
[379889161,1755432656547,-480.0,0.00020332,2]
[379889163,1755432656556,-480.0,0.00020332,2]
[379889165,1755432656565,-480.0,0.00020332,2]
[379889167,1755432656574,-480.0,0.00020332,2]
[379889169,1755432656584,-480.0,0.00020332,2]
[379889171,1755432656593,-480.0,0.00020332,2]
[379889173,1755432656602,-480.0,0.00020332,2]
[379889175,1755432656611,-480.0,0.00020332,2]
[379889177,1755432656621,-480.0,0.00020332,2]
[379889179,1755432656630,-506.36170116,0.00020332,2]
[379889181,1755432656640,-480.0,0.00020332,2]
[379889183,1755432656649,-480.0,0.00020332,2]
[379889185,1755432656659,-480.0,0.00020332,2]
[379889187,1755432656669,-309.08863514,0.00020332,2]
[379889189,1755432656678,-174.225435,0.00020333,2]
[379889191,1755432656687,-174.225435,0.00020333,2]
[379889193,1755432656697,-276.021004,0.00020333,2]
[379889195,1755432656706,-276.021004,0.00020333,2]
[379889197,1755432656715,-253.751764,0.00020333,2]
[379889199,1755432656724,-253.751764,0.00020333,2]
[379889201,1755432656733,-480.0,0.00020333,2]
[379889203,1755432656742,-480.0,0.00020333,2]
[379889205,1755432656752,-480.0,0.00020333,2]
[379889207,1755432656761,-460.0,0.00020333,2]
[379889209,1755432656770,-480.0,0.00020333,2]
[379889210,1755432656779,-185.35721295,0.00020333,2]
[379889211,1755432656789,-366.49532951,0.00020333,2]
[379889212,1755432656798,-480.0,0.00020333,2]
[379889213,1755432656807,-480.0,0.00020333,2]
[379889214,1755432656817,-480.0,0.00020333,2]
[379889215,1755432656826,-480.0,0.00020333,2]
[379889216,1755432656836,-1090.54,0.00020333,2]
[379889217,1755432656845,-480.0,0.00020333,2]
[379889218,1755432656854,-480.0,0.00020333,2]
[379889219,1755432656863,-479.61,0.00020333,2]
[379889220,1755432656872,-4841.57,0.00020333,2]
[379889221,1755432656882,-7041.82,0.00020333,2]
[379889222,1755432656891,-1016.3,0.00020333,2]
[379889223,1755432656900,-480.0,0.00020333,2]
[379889224,1755432656910,-2313.08,0.00020334,2]
[379889225,1755432656919,-2544.88374223,0.00020395,2]
[379889226,1755432656928,-151.0,0.000204,4]
[379889227,1755432656937,-224.126508,0.00020403,2]
[379889229,1755432656946,-224.126508,0.00020403,2]
[379889231,1755432656955,-3438.14142412,0.00020403,2]
[379889233,1755432656964,-168.0,0.00020409,2]
[379889235,1755432656974,-151.0,0.00020421,2]
[379889237,1755432656983,-151.0,0.00020421,2]
[379889239,1755432656992,-626.316699,0.00020421,2]
[379889241,1755432657001,-626.316699,0.00020421,2]
[379889243,1755432657012,-671.96,0.00020421,2]
[379889245,1755432657021,-652.29,0.00020421,2]
[379889247,1755432657031,-579.9,0.00020421,2]
[379889249,1755432657040,-1696.46,0.00020421,2]
[379889251,1755432657050,-528.22,0.00020421,2]
[379889253,1755432657059,-480.0,0.00020422,2]
[379889255,1755432657069,-480.0,0.00020422,2]
[379889257,1755432657079,-480.0,0.00020422,2]
[379889259,1755432657097,-480.0,0.00020422,2]
[379889260,1755432657107,-480.0,0.00020422,2]
[379889263,1755432657117,-356.20721097,0.00020422,2]
[379889265,1755432657126,-480.0,0.00020422,2]
[379889267,1755432657136,-480.0,0.00020422,2]
[379889269,1755432657145,-480.0,0.00020422,2]
[379889271,1755432657154,-480.0,0.00020422,2]
[379889273,1755432657163,-480.0,0.00020422,2]
[379889284,1755432657268,-480.0,0.00020422,2]
[379889286,1755432657278,-168.0,0.00020443,2]
[379889288,1755432657287,-558.59843466,0.00020498,2]
[379889290,1755432657297,-480.0,0.00020499,2]
[379889292,1755432657306,-480.0,0.00020499,2]
[379889294,1755432657316,-1499.65,0.00020499,2]
[379889297,1755432657325,-174.225435,0.000205,2]
[379889298,1755432657335,-174.225435,0.000205,2]
[379889301,1755432657350,-151.0,0.000205,2]
[379889303,1755432657362,-276.021004,0.000205,2]
[379889305,1755432657373,-276.021004,0.000205,2]
[379889307,1755432657384,-151.0,0.000205,2]
[379889309,1755432657394,-239.825955,0.000205,2]
[379889311,1755432657403,-151.0,0.000205,2]
[379889312,1755432657413,-151.0,0.000205,2]
[379889314,1755432657423,-224.126508,0.000205,2]
[379889316,1755432657433,-224.126508,0.000205,2]
[379889319,1755432657442,-626.316699,0.000205,2]
[379889320,1755432657451,-626.316699,0.000205,2]
[379889323,1755432657461,-253.751764,0.000205,2]
[379889325,1755432657470,-253.751764,0.000205,2]
[379889327,1755432657480,-151.0,0.000205,4]
[379889328,1755432657489,-168.0,0.00020501,2]
[379889330,1755432657498,-1053.83,0.00020501,2]
[379889332,1755432657507,-480.0,0.00020501,2]
[379889334,1755432657516,-510.83,0.00020501,2]
[379889336,1755432657526,-1350.16,0.00020501,2]
[379889338,1755432657536,-1942.59,0.00020501,2]
[379889340,1755432657545,-485.26,0.00020501,2]
[379889342,1755432657554,-1202.01,0.00020501,2]
[379889344,1755432657564,-480.0,0.00020501,2]
[379889346,1755432657573,-480.0,0.00020501,2]
[379889348,1755432657583,-600.24,0.00020501,2]
[379889350,1755432657592,-841.63,0.00020501,2]
[379889353,1755432657602,-480.0,0.00020501,2]
[379889355,1755432657612,-480.0,0.00020502,2]
[379889356,1755432657622,-3081.23,0.00020502,2]
[379889358,1755432657631,-186.87,0.00020503,2]
[379889360,1755432657641,-480.0,0.00020503,2]
[379889362,1755432657650,-480.0,0.00020503,2]
[379889364,1755432657660,-480.0,0.00020503,2]
[379889366,1755432657669,-1066.29,0.00020503,2]
[379889368,1755432657679,-494.92,0.00020503,2]
[379889370,1755432657688,-480.0,0.00020503,2]
[379889372,1755432657697,-480.0,0.00020503,2]
[379889374,1755432657706,-480.0,0.00020503,2]
[379889376,1755432657716,-480.0,0.00020503,2]
[379889378,1755432657725,-480.0,0.00020503,2]
[379889380,1755432657735,-784.47,0.00020503,2]
[379889382,1755432657744,-480.0,0.00020503,2]
[379889384,1755432657753,-2330.91,0.00020503,2]
[379889386,1755432657763,-480.0,0.00020503,2]
[379889388,1755432657772,-547.81,0.00020503,2]
[379889390,1755432657781,-480.0,0.00020503,2]
[379889392,1755432657791,-480.0,0.00020503,2]
[379889394,1755432657800,-480.0,0.00020503,2]
[379889396,1755432657809,-480.0,0.00020503,2]
[379889398,1755432657818,-225.79239721,0.00020503,2]
[379889400,1755432657827,-480.0,0.00020503,2]
[379889402,1755432657836,-480.0,0.00020503,2]
[379889404,1755432657845,-622.5,0.00020503,2]
[379889406,1755432657854,-480.0,0.00020503,2]
[379889408,1755432657864,-552.58,0.00020503,2]
[379889411,1755432657873,-480.0,0.00020503,2]
[379889413,1755432657884,-480.0,0.00020503,2]
[379889415,1755432657893,-962.79,0.00020503,2]
[379889416,1755432657904,-480.0,0.00020503,2]
[379889418,1755432657914,-494.21,0.00020505,2]
[379889421,1755432657925,-480.0,0.00020505,2]
[379889423,1755432657934,-773.7,0.00020505,2]
[379889424,1755432657943,-480.0,0.00020505,2]
[379889426,1755432657952,-6390.71,0.00020505,2]
[379889428,1755432657962,-840.69,0.00020505,2]
[379889430,1755432657971,-480.0,0.00020505,2]
[379889432,1755432657980,-1299.43,0.00020505,2]
[379889435,1755432657989,-1819.43,0.00020505,2]
[379889437,1755432657999,-820.66,0.00020505,2]
[379889438,1755432658008,-812.51,0.00020506,2]
[379889440,1755432658017,-480.0,0.00020506,2]
[379889442,1755432658026,-480.0,0.00020506,2]
[379889444,1755432658035,-480.0,0.00020506,2]
[379889446,1755432658045,-480.0,0.00020506,2]
[379889449,1755432658054,-480.0,0.00020506,2]